[Event "44th Chess Olympiad Women 2022"]
[Site "Chennai"]
[Date "2022.08.06"]
[Round "8.52"]
[White "Chong, Kimberly"]
[Black "Bantiwalu, Aster Melake"]
[Result "1-0"]
[WhiteElo "1741"]
[BlackElo "1425"]
[Annotator "NA RC"]
[PlyCount "117"]
[EventDate "2022.??.??"]
[TimeControl "60"]

1. e4 {[%emt 0:00:02]} e5 {[%emt 0:00:13]} 2. Nf3 {[%emt 0:00:06]} Nc6 {
[%emt 0:00:14]} 3. Bc4 {[%emt 0:00:03]} h6 {[%emt 0:00:29]} 4. d4 {[%emt 0:00:
00]} exd4 {[%emt 0:01:19]} 5. Nxd4 {[%emt 0:00:41]} Ne5 {[%emt 0:00:47]} 6. Bb3
{[%emt 0:02:10]} Bc5 {[%emt 0:00:32]} 7. Nc3 {[%emt 0:19:02]} d6 {[%emt 0:00:
00]} 8. Nf5 {[%emt 0:09:02]} Bxf5 {[%emt 0:01:59]} 9. exf5 {[%emt 0:00:19]} Nf6
{[%emt 0:00:44]} 10. O-O {[%emt 0:02:57]} O-O {[%emt 0:00:27]} 11. Be3 {
[%emt 0:02:23]} Bb6 {[%emt 0:00:55]} 12. a4 {[%emt 0:05:24]} c6 {[%emt 0:03:51]
} 13. Ne2 {[%emt 0:04:33]} d5 {[%emt 0:01:27]} 14. a5 {[%emt 0:04:06]} Bc7 {
[%emt 0:03:37]} 15. Bc5 {[%emt 0:01:12]} Re8 {[%emt 0:00:27]} 16. f4 {[%emt 0:
00:00]} Ned7 {[%emt 0:01:43]} 17. Bf2 {[%emt 0:00:47]} Ne4 {[%emt 0:01:46]} 18.
Be1 {[%emt 0:03:10]} a6 {[%emt 0:00:39]} 19. c4 {[%emt 0:00:46]} dxc4 {[%emt 0:
00:00]} 20. Bxc4 {[%emt 0:00:04]} Qe7 {[%emt 0:00:53]} 21. b4 {[%emt 0:02:40]}
Rad8 {[%emt 0:01:58]} 22. Qc2 {[%emt 0:01:16]} Qf6 {[%emt 0:03:16]} 23. Rd1 {
[%emt 0:01:06]} Qxf5 {[%emt 0:05:38]} 24. Ng3 {[%emt 0:00:23]} Nxg3 {[%emt 0:
00:00]} 25. Bd3 {[%emt 0:02:26]} Ne4 {[%emt 0:00:42]} 26. Bh4 {[%emt 0:01:48]}
f6 {[%emt 0:06:11]} 27. Rde1 {[%emt 0:07:42]} Qg4 {[%emt 0:01:34]} 28. Bxe4 {
[%emt 0:06:05]} Qxh4 {[%emt 0:00:20]} 29. Bh7+ {[%emt 0:05:46]} Kh8 {[%emt 0:
00:00]} 30. g3 {[%emt 0:01:17]} Qh5 {[%emt 0:08:52]} 31. Bg6 {[%emt 0:00:22]}
Qd5 {[%emt 0:00:37]} 32. Rxe8+ {[%emt 0:01:21]} Rxe8 {[%emt 0:00:18]} 33. Bxe8
{[%emt 0:00:11]} Qd4+ {[%emt 0:00:27]} 34. Qf2 {[%emt 0:00:51]} Qd6 {[%emt 0:
00:00]} 35. Bxd7 {[%emt 0:02:29]} Qxd7 {[%emt 0:00:10]} 36. Re1 {[%emt 0:01:39]
} Kg8 {[%emt 0:00:32]} 37. Qe3 {[%emt 0:00:35]} Kf8 {[%emt 0:00:09]} 38. Qf2 {
[%emt 0:01:50]} Kf7 {[%emt 0:03:22]} 39. Qa2+ {[%emt 0:00:23]} Kf8 {[%emt 0:00:
00]} 40. Qe2 {[%emt 0:00:22]} c5 {[%emt 0:03:16]} 41. Rd1 {[%emt 0:31:11]} Qc6
{[%emt 0:30:21]} 42. Rc1 {[%emt 0:00:38]} Bd6 {[%emt 0:00:39]} 43. Qf2 {
[%emt 0:00:00]} c4 {[%emt 0:00:00]} 44. Qd4 {[%emt 0:00:00]} Be7 {[%emt 0:00:
00]} 45. Rxc4 {[%emt 0:00:00]} Qe6 {[%emt 0:00:00]} 46. Qe4 {[%emt 0:00:00]}
Qg4 {[%emt 0:00:00]} 47. Kg2 {[%emt 0:00:00]} Qd7 {[%emt 0:00:00]} 48. Qc2 {
[%emt 0:00:00]} Qd5+ {[%emt 0:00:00]} 49. Kg1 {[%emt 0:00:00]} Qd7 {[%emt 0:00:
00]} 50. Rc8+ {[%emt 0:00:00]} Kf7 {[%emt 0:00:00]} 51. Qc4+ {[%emt 0:00:00]}
Kg6 {[%emt 0:00:00]} 52. Qc2+ {[%emt 0:00:00]} Kf7 {[%emt 0:00:00]} 53. Qc4+ {
[%emt 0:00:00]} Kg6 {[%emt 0:00:00]} 54. Rc7 {[%emt 0:00:00]} Qd1+ {[%emt 0:00:
00]} 55. Kg2 {[%emt 0:00:00]} Qd2+ {[%emt 0:00:00]} 56. Kh3 {[%emt 0:00:00]}
Qxb4 {[%emt 0:00:00]} 57. Qe6 {[%emt 0:00:00]} Bf8 {[%emt 0:00:00]} 58. Qf7+ {
[%emt 0:00:00]} Kf5 {[%emt 0:00:00]} 59. g4+ {[%emt 0:00:00]} 1-0

[Event "44th Chess Olympiad Women 2022"]
[Site "Chennai"]
[Date "2022.08.06"]
[Round "8.52"]
[White "Haile, Lidet Abate"]
[Black "Smith, Olivia"]
[Result "0-1"]
[WhiteElo "1624"]
[BlackElo "2038"]
[Annotator "NA RC"]
[PlyCount "92"]
[EventDate "2022.??.??"]
[TimeControl "60"]

1. e4 {[%emt 0:00:10]} e5 {[%emt 0:00:06]} 2. Nf3 {[%emt 0:00:00]} Nf6 {
[%emt 0:00:04]} 3. Nc3 {[%emt 0:00:20]} Bb4 {[%emt 0:00:14]} 4. d3 {[%emt 0:00:
00]} O-O {[%emt 0:01:13]} 5. Bg5 {[%emt 0:01:46]} Re8 {[%emt 0:03:02]} 6. Be2 {
[%emt 0:00:43]} c6 {[%emt 0:00:54]} 7. O-O {[%emt 0:00:35]} d6 {[%emt 0:01:32]}
8. a3 {[%emt 0:00:58]} Ba5 {[%emt 0:00:26]} 9. b4 {[%emt 0:01:17]} Bc7 {
[%emt 0:00:15]} 10. h3 {[%emt 0:03:44]} Nbd7 {[%emt 0:01:24]} 11. Qd2 {[%emt 0:
00:00]} Nf8 {[%emt 0:01:45]} 12. Nd1 {[%emt 0:06:27]} Ne6 {[%emt 0:07:15]} 13.
Re1 {[%emt 0:06:12]} h6 {[%emt 0:04:59]} 14. Bh4 {[%emt 0:03:25]} Nf4 {[%emt 0:
00:00]} 15. Bf1 {[%emt 0:09:53]} g5 {[%emt 0:07:33]} 16. Bg3 {[%emt 0:00:00]}
N6h5 {[%emt 0:07:05]} 17. Ne3 {[%emt 0:00:00]} Qf6 {[%emt 0:02:07]} 18. Nh2 {
[%emt 0:04:19]} Kh7 {[%emt 0:04:26]} 19. Nhg4 {[%emt 0:01:12]} Qg6 {[%emt 0:00:
00]} 20. c4 {[%emt 0:04:47]} Ng7 {[%emt 0:04:50]} 21. Rac1 {[%emt 0:10:39]} h5
{[%emt 0:01:45]} 22. Nh2 {[%emt 0:02:23]} f5 {[%emt 0:03:06]} 23. exf5 {
[%emt 0:06:50]} Nxf5 {[%emt 0:02:41]} 24. Nxf5 {[%emt 0:02:42]} Bxf5 {[%emt 0:
00:00]} 25. Bxf4 {[%emt 0:01:29]} gxf4 {[%emt 0:00:43]} 26. Kh1 {[%emt 0:01:12]
} Rg8 {[%emt 0:00:37]} 27. Nf3 {[%emt 0:02:25]} Qf6 {[%emt 0:03:24]} 28. Be2 {
[%emt 0:06:03]} Rg7 {[%emt 0:01:19]} 29. Rg1 {[%emt 0:03:34]} Rag8 {[%emt 0:00:
00]} 30. Rce1 {[%emt 0:07:02]} d5 {[%emt 0:02:39]} 31. c5 {[%emt 0:07:07]} e4 {
[%emt 0:01:59]} 32. dxe4 {[%emt 0:01:02]} dxe4 {[%emt 0:00:44]} 33. Qd4 {
[%emt 0:00:33]} Qe7 {[%emt 0:06:24]} 34. Bc4 {[%emt 0:02:58]} Rd8 {[%emt 0:00:
00]} 35. Qc3 {[%emt 0:01:56]} h4 {[%emt 0:04:45]} 36. Nh2 {[%emt 0:01:53]} Be5
{[%emt 0:13:37]} 37. Qc2 {[%emt 0:00:39]} Rd4 {[%emt 0:02:10]} 38. Qe2 {
[%emt 0:00:30]} Bg6 {[%emt 0:03:14]} 39. Ng4 {[%emt 0:00:10]} Bc7 {[%emt 0:00:
00]} 40. Rd1 {[%emt 0:00:34]} Rxd1 {[%emt 0:01:24]} 41. Qxd1 {[%emt 0:30:02]}
Bh5 {[%emt 0:10:32]} 42. Re1 {[%emt 0:00:00]} Bxg4 {[%emt 0:03:45]} 43. hxg4 {
[%emt 0:00:00]} h3 {[%emt 0:02:48]} 44. gxh3 {[%emt 0:00:00]} Qh4 {[%emt 0:00:
00]} 45. Bf1 {[%emt 0:00:00]} Qxf2 {[%emt 0:01:32]} 46. Rxe4 {[%emt 0:00:00]}
f3 {[%emt 0:00:25]} 0-1

[Event "44th Chess Olympiad Women 2022"]
[Site "Chennai"]
[Date "2022.08.06"]
[Round "8.53"]
[White "Ioannides Liu, Alice"]
[Black "Kojima, Natsumi"]
[Result "0-1"]
[WhiteElo "1292"]
[BlackElo "1782"]
[Annotator "NA RC"]
[PlyCount "110"]
[EventDate "2022.??.??"]
[TimeControl "60"]

1. e4 {[%emt 0:00:02]} e6 {[%emt 0:00:07]} 2. d4 {[%emt 0:00:12]} d5 {[%emt 0:
00:00]} 3. exd5 {[%emt 0:00:15]} exd5 {[%emt 0:00:08]} 4. Nf3 {[%emt 0:00:42]}
Nc6 {[%emt 0:02:02]} 5. Be2 {[%emt 0:02:22]} Nf6 {[%emt 0:00:36]} 6. O-O {
[%emt 0:00:13]} Be7 {[%emt 0:02:05]} 7. c3 {[%emt 0:03:43]} h6 {[%emt 0:01:21]}
8. Re1 {[%emt 0:03:24]} Be6 {[%emt 0:03:11]} 9. Nbd2 {[%emt 0:01:17]} O-O {
[%emt 0:02:17]} 10. Nf1 {[%emt 0:06:41]} Bd6 {[%emt 0:01:16]} 11. Ne3 {[%emt 0:
00:00]} Ne4 {[%emt 0:08:52]} 12. Qb3 {[%emt 0:06:49]} Rb8 {[%emt 0:10:05]} 13.
Nd2 {[%emt 0:08:41]} Bxh2+ {[%emt 0:06:12]} 14. Kf1 {[%emt 0:22:16]} Qh4 {
[%emt 0:16:57]} 15. Nxe4 {[%emt 0:02:57]} dxe4 {[%emt 0:03:16]} 16. Qc2 {
[%emt 0:03:32]} Bd6 {[%emt 0:04:35]} 17. Bb5 {[%emt 0:02:09]} Bd7 {[%emt 0:00:
00]} 18. b3 {[%emt 0:06:21]} Qh1+ {[%emt 0:02:04]} 19. Ke2 {[%emt 0:00:20]}
Qh5+ {[%emt 0:00:07]} 20. Kd2 {[%emt 0:00:55]} Qxb5 {[%emt 0:00:24]} 21. Qxe4 {
[%emt 0:01:21]} Rbe8 {[%emt 0:05:43]} 22. Qc2 {[%emt 0:01:43]} Bf4 {[%emt 0:00:
00]} 23. Bb2 {[%emt 0:03:42]} Qg5 {[%emt 0:01:13]} 24. Qd3 {[%emt 0:08:05]} Bf5
{[%emt 0:07:02]} 25. Qf1 {[%emt 0:00:46]} Bg6 {[%emt 0:01:32]} 26. Bc1 {
[%emt 0:02:16]} Rd8 {[%emt 0:02:30]} 27. Kd1 {[%emt 0:00:56]} Rfe8 {[%emt 0:00:
00]} 28. Bd2 {[%emt 0:00:59]} Bxe3 {[%emt 0:00:45]} 29. Bxe3 {[%emt 0:00:09]}
Qa5 {[%emt 0:00:43]} 30. Bd2 {[%emt 0:00:42]} Qf5 {[%emt 0:00:26]} 31. Rc1 {
[%emt 0:00:40]} Rxe1+ {[%emt 0:00:23]} 32. Qxe1 {[%emt 0:00:11]} Qg4+ {[%emt 0:
00:00]} 33. f3 {[%emt 0:01:45]} Qxg2 {[%emt 0:00:16]} 34. Qe3 {[%emt 0:02:35]}
Qf1+ {[%emt 0:02:10]} 35. Be1 {[%emt 0:00:24]} Qd3+ {[%emt 0:00:09]} 36. Qxd3 {
[%emt 0:00:05]} Bxd3 {[%emt 0:00:05]} 37. Kd2 {[%emt 0:00:33]} Bf5 {[%emt 0:00:
00]} 38. Bg3 {[%emt 0:00:47]} Rd7 {[%emt 0:01:22]} 39. Re1 {[%emt 0:00:21]} Kf8
{[%emt 0:00:26]} 40. Bf4 {[%emt 0:01:35]} Nd8 {[%emt 0:00:32]} 41. Re5 {
[%emt 0:30:36]} Bg6 {[%emt 0:30:39]} 42. Rc5 {[%emt 0:00:40]} c6 {[%emt 0:00:
00]} 43. Re5 {[%emt 0:00:26]} Ne6 {[%emt 0:00:35]} 44. Bg3 {[%emt 0:01:26]} Ng5
{[%emt 0:03:47]} 45. Re3 {[%emt 0:01:12]} Rd5 {[%emt 0:00:00]} 46. Ke2 {
[%emt 0:00:00]} Ne6 {[%emt 0:00:00]} 47. Be5 {[%emt 0:00:00]} f6 {[%emt 0:00:
00]} 48. Bxf6 {[%emt 0:00:00]} gxf6 {[%emt 0:00:00]} 49. Rxe6 {[%emt 0:00:00]}
Kf7 {[%emt 0:00:00]} 50. Re3 {[%emt 0:00:00]} Rh5 {[%emt 0:00:00]} 51. Kd1 {
[%emt 0:00:00]} Rh2 {[%emt 0:00:00]} 52. Re2 {[%emt 0:00:00]} Rxe2 {[%emt 0:00:
00]} 53. Kxe2 {[%emt 0:00:00]} Bb1 {[%emt 0:00:00]} 54. a3 {[%emt 0:00:00]} Ba2
{[%emt 0:00:00]} 55. b4 {[%emt 0:00:00]} Bd5 {[%emt 0:00:00]} 0-1

[Event "44th Chess Olympiad Women 2022"]
[Site "Chennai"]
[Date "2022.08.06"]
[Round "8.53"]
[White "Misawa, Yuki"]
[Black "Bouzana, Christina"]
[Result "1/2-1/2"]
[WhiteElo "1587"]
[BlackElo "1079"]
[Annotator "NA RC"]
[PlyCount "62"]
[EventDate "2022.??.??"]
[TimeControl "60"]

1. d4 {[%emt 0:00:03]} Nf6 {[%emt 0:00:06]} 2. Nf3 {[%emt 0:00:20]} d5 {
[%emt 0:00:29]} 3. c4 {[%emt 0:00:17]} e6 {[%emt 0:00:06]} 4. Nc3 {[%emt 0:00:
00]} c5 {[%emt 0:00:21]} 5. Bg5 {[%emt 0:01:35]} Be7 {[%emt 0:01:34]} 6. e3 {
[%emt 0:02:31]} Nc6 {[%emt 0:04:56]} 7. dxc5 {[%emt 0:01:30]} dxc4 {[%emt 0:00:
00]} 8. Bxc4 {[%emt 0:01:52]} O-O {[%emt 0:03:22]} 9. Qe2 {[%emt 0:06:21]} Nd7
{[%emt 0:04:19]} 10. Bxe7 {[%emt 0:03:41]} Qxe7 {[%emt 0:00:16]} 11. O-O {
[%emt 0:01:51]} Nxc5 {[%emt 0:02:32]} 12. a3 {[%emt 0:02:29]} Nd7 {[%emt 0:00:
00]} 13. Rac1 {[%emt 0:05:09]} Nde5 {[%emt 0:10:36]} 14. Ba2 {[%emt 0:07:10]}
b6 {[%emt 0:05:22]} 15. Bb1 {[%emt 0:07:08]} Bb7 {[%emt 0:01:08]} 16. Nxe5 {
[%emt 0:01:49]} Nxe5 {[%emt 0:00:13]} 17. Qh5 {[%emt 0:02:03]} Ng6 {[%emt 0:00:
00]} 18. Rfd1 {[%emt 0:15:23]} Rfd8 {[%emt 0:03:32]} 19. Qg4 {[%emt 0:07:10]}
Qh4 {[%emt 0:05:29]} 20. Qg3 {[%emt 0:07:33]} Qxg3 {[%emt 0:03:50]} 21. hxg3 {
[%emt 0:00:16]} Rac8 {[%emt 0:05:40]} 22. Ba2 {[%emt 0:03:44]} Bc6 {[%emt 0:00:
00]} 23. f4 {[%emt 0:04:31]} Rxd1+ {[%emt 0:01:03]} 24. Rxd1 {[%emt 0:00:31]}
Ne7 {[%emt 0:00:53]} 25. Kf2 {[%emt 0:01:13]} h6 {[%emt 0:00:58]} 26. Bb3 {
[%emt 0:05:10]} Kh7 {[%emt 0:00:20]} 27. Ne2 {[%emt 0:02:09]} Kg6 {[%emt 0:00:
00]} 28. Nd4 {[%emt 0:01:12]} Be4 {[%emt 0:01:50]} 29. Rd2 {[%emt 0:03:21]} Rd8
{[%emt 0:00:36]} 30. Bc2 {[%emt 0:01:43]} Bxc2 {[%emt 0:00:23]} 31. Rxc2 {
[%emt 0:00:07]} Rc8 {[%emt 0:00:31]} 1/2-1/2

[Event "44th Chess Olympiad Women 2022"]
[Site "Chennai"]
[Date "2022.08.06"]
[Round "8.53"]
[White "Sakai, Azumi"]
[Black "Markidou, Christianna"]
[Result "0-1"]
[WhiteElo "1759"]
[BlackElo "1701"]
[Annotator "NA RC"]
[PlyCount "186"]
[EventDate "2022.??.??"]
[TimeControl "60"]

1. d4 {[%emt 0:00:03]} d5 {[%emt 0:00:05]} 2. c4 {[%emt 0:00:07]} e6 {[%emt 0:
00:00]} 3. Nc3 {[%emt 0:00:05]} Nf6 {[%emt 0:00:50]} 4. cxd5 {[%emt 0:00:08]}
exd5 {[%emt 0:01:22]} 5. Bg5 {[%emt 0:00:07]} c6 {[%emt 0:00:59]} 6. e3 {
[%emt 0:00:13]} Nbd7 {[%emt 0:00:24]} 7. Bd3 {[%emt 0:00:21]} Be7 {[%emt 0:00:
00]} 8. Qc2 {[%emt 0:00:18]} O-O {[%emt 0:00:20]} 9. Nf3 {[%emt 0:00:08]} Re8 {
[%emt 0:00:37]} 10. O-O {[%emt 0:00:10]} h6 {[%emt 0:07:31]} 11. Bh4 {[%emt 0:
00:00]} Ne4 {[%emt 0:02:33]} 12. Bxe7 {[%emt 0:00:37]} Qxe7 {[%emt 0:00:11]}
13. Rab1 {[%emt 0:01:04]} Ndf6 {[%emt 0:25:51]} 14. h3 {[%emt 0:06:25]} Bf5 {
[%emt 0:05:07]} 15. b4 {[%emt 0:02:42]} Qe6 {[%emt 0:07:40]} 16. Ne2 {[%emt 0:
00:00]} g5 {[%emt 0:02:54]} 17. h4 {[%emt 0:06:42]} Bg4 {[%emt 0:07:20]} 18.
hxg5 {[%emt 0:04:22]} hxg5 {[%emt 0:04:36]} 19. Ne5 {[%emt 0:01:09]} Bxe2 {
[%emt 0:07:44]} 20. Bxe2 {[%emt 0:00:41]} Kg7 {[%emt 0:00:36]} 21. Rfc1 {
[%emt 0:20:11]} Nd7 {[%emt 0:02:55]} 22. Nxd7 {[%emt 0:06:40]} Qxd7 {[%emt 0:
00:00]} 23. b5 {[%emt 0:00:30]} Rac8 {[%emt 0:01:46]} 24. bxc6 {[%emt 0:01:37]}
bxc6 {[%emt 0:00:18]} 25. Ba6 {[%emt 0:02:32]} Rc7 {[%emt 0:00:29]} 26. Bb5 {
[%emt 0:03:58]} Qe6 {[%emt 0:08:04]} 27. Bd3 {[%emt 0:02:29]} Nf6 {[%emt 0:00:
00]} 28. Rb3 {[%emt 0:01:52]} Ne4 {[%emt 0:02:50]} 29. Ra3 {[%emt 0:02:25]} Qd6
{[%emt 0:00:40]} 30. Ra6 {[%emt 0:00:49]} Rh8 {[%emt 0:02:49]} 31. Bxe4 {
[%emt 0:03:10]} Qh2+ {[%emt 0:00:57]} 32. Kf1 {[%emt 0:00:39]} dxe4 {[%emt 0:
00:00]} 33. Qd1 {[%emt 0:11:30]} Qh1+ {[%emt 0:00:18]} 34. Ke2 {[%emt 0:00:08]}
Qxg2 {[%emt 0:00:14]} 35. Qg1 {[%emt 0:01:49]} Qf3+ {[%emt 0:01:07]} 36. Kd2 {
[%emt 0:00:24]} f6 {[%emt 0:02:11]} 37. a4 {[%emt 0:04:06]} Rb8 {[%emt 0:00:38]
} 38. Rc2 {[%emt 0:05:57]} Rb6 {[%emt 0:01:32]} 39. Ra5 {[%emt 0:00:42]} Rbb7 {
[%emt 0:00:52]} 40. Rac5 {[%emt 0:00:57]} Rb4 {[%emt 0:00:43]} 41. a5 {[%emt 0:
00:00]} a6 {[%emt 0:30:56]} 42. Qg3 {[%emt 0:00:54]} Qxg3 {[%emt 0:00:00]} 43.
fxg3 {[%emt 0:00:00]} Rb5 {[%emt 0:00:00]} 44. Ke2 {[%emt 0:00:00]} Rxc5 {
[%emt 0:00:00]} 45. Rxc5 {[%emt 0:00:00]} Kf7 {[%emt 0:00:00]} 46. d5 {[%emt 0:
00:00]} Ke7 {[%emt 0:00:00]} 47. dxc6 {[%emt 0:00:00]} Kd6 {[%emt 0:00:00]} 48.
Rc4 {[%emt 0:00:00]} Rxc6 {[%emt 0:00:00]} 49. Rxe4 {[%emt 0:00:00]} Rc2+ {
[%emt 0:00:00]} 50. Kd3 {[%emt 0:00:00]} Ra2 {[%emt 0:00:00]} 51. Rd4+ {
[%emt 0:00:00]} Ke6 {[%emt 0:00:00]} 52. Re4+ {[%emt 0:00:00]} Kf7 {[%emt 0:00:
00]} 53. g4 {[%emt 0:00:00]} Rxa5 {[%emt 0:00:00]} 54. Rb4 {[%emt 0:00:00]} Ra1
{[%emt 0:00:00]} 55. Kc2 {[%emt 0:00:00]} a5 {[%emt 0:00:00]} 56. Re4 {[%emt 0:
00:00]} Ra3 {[%emt 0:00:00]} 57. Kb2 {[%emt 0:00:00]} Rd3 {[%emt 0:00:00]} 58.
Kc2 {[%emt 0:00:00]} Rd6 {[%emt 0:00:00]} 59. Ra4 {[%emt 0:00:00]} Re6 {
[%emt 0:00:00]} 60. Kd3 {[%emt 0:00:00]} Re5 {[%emt 0:00:00]} 61. Ke2 {[%emt 0:
00:00]} Kg6 {[%emt 0:00:00]} 62. Kf2 {[%emt 0:00:00]} Kf7 {[%emt 0:00:00]} 63.
Ke2 {[%emt 0:00:00]} Ke6 {[%emt 0:00:00]} 64. Rd4 {[%emt 0:00:00]} Rb5 {
[%emt 0:00:13]} 65. Ra4 {[%emt 0:00:00]} Kd5 {[%emt 0:00:40]} 66. Kd3 {[%emt 0:
00:00]} Kc5 {[%emt 0:01:13]} 67. Kc3 {[%emt 0:00:00]} Kb6 {[%emt 0:00:13]} 68.
Rd4 {[%emt 0:00:00]} Rc5+ {[%emt 0:02:13]} 69. Kb3 {[%emt 0:00:00]} Kb5 {
[%emt 0:00:10]} 70. Re4 {[%emt 0:00:00]} Re5 {[%emt 0:01:20]} 71. Rd4 {[%emt 0:
00:00]} Rxe3+ {[%emt 0:00:08]} 72. Kb2 {[%emt 0:00:23]} Rf3 {[%emt 0:01:07]}
73. Rd5+ {[%emt 0:00:31]} Kb4 {[%emt 0:00:26]} 74. Rd4+ {[%emt 0:00:22]} Kc5 {
[%emt 0:00:20]} 75. Ra4 {[%emt 0:01:00]} Kb5 {[%emt 0:00:10]} 76. Rd4 {[%emt 0:
00:00]} Rf4 {[%emt 0:00:11]} 77. Rd6 {[%emt 0:00:50]} a4 {[%emt 0:00:23]} 78.
Re6 {[%emt 0:01:04]} Kc5 {[%emt 0:01:09]} 79. Ra6 {[%emt 0:00:52]} Kd5 {
[%emt 0:00:17]} 80. Kc3 {[%emt 0:06:11]} Ke4 {[%emt 0:01:31]} 81. Rxa4+ {
[%emt 0:03:07]} Kf3 {[%emt 0:00:06]} 82. Ra6 {[%emt 0:00:40]} Kxg4 {[%emt 0:00:
00]} 83. Kd3 {[%emt 0:00:24]} f5 {[%emt 0:00:18]} 84. Ke3 {[%emt 0:00:55]} Kg3
{[%emt 0:01:08]} 85. Rg6 {[%emt 0:00:45]} g4 {[%emt 0:00:23]} 86. Rh6 {[%emt 0:
00:00]} Rf3+ {[%emt 0:00:45]} 87. Ke2 {[%emt 0:00:24]} Kg2 {[%emt 0:00:54]} 88.
Rh5 {[%emt 0:02:11]} f4 {[%emt 0:00:24]} 89. Rg5 {[%emt 0:00:45]} g3 {[%emt 0:
00:00]} 90. Rg4 {[%emt 0:01:52]} Rf2+ {[%emt 0:00:16]} 91. Ke1 {[%emt 0:00:19]}
f3 {[%emt 0:00:22]} 92. Rg5 {[%emt 0:01:50]} Re2+ {[%emt 0:00:13]} 93. Kd1 {
[%emt 0:00:08]} Re7 {[%emt 0:00:10]} 0-1

[Event "44th Chess Olympiad Women 2022"]
[Site "Chennai"]
[Date "2022.08.06"]
[Round "8.53"]
[White "Sokolova, Victoria"]
[Black "Mitsuyama, Rikka"]
[Result "0-1"]
[WhiteElo "1193"]
[BlackElo "1157"]
[Annotator "NA RC"]
[PlyCount "58"]
[EventDate "2022.??.??"]
[TimeControl "60"]

1. e4 {[%emt 0:00:03]} e5 {[%emt 0:00:09]} 2. Nf3 {[%emt 0:00:04]} Nc6 {
[%emt 0:00:06]} 3. Bc4 {[%emt 0:00:10]} Bc5 {[%emt 0:00:28]} 4. c3 {[%emt 0:00:
00]} Nf6 {[%emt 0:00:38]} 5. d4 {[%emt 0:00:46]} exd4 {[%emt 0:00:31]} 6. cxd4
{[%emt 0:00:06]} Bb4+ {[%emt 0:00:10]} 7. Bd2 {[%emt 0:00:40]} Bxd2+ {[%emt 0:
00:00]} 8. Nbxd2 {[%emt 0:00:12]} d5 {[%emt 0:01:55]} 9. exd5 {[%emt 0:01:32]}
Nxd5 {[%emt 0:00:38]} 10. O-O {[%emt 0:01:19]} O-O {[%emt 0:02:23]} 11. Re1 {
[%emt 0:01:58]} Bg4 {[%emt 0:08:50]} 12. Qb3 {[%emt 0:02:17]} Nb6 {[%emt 0:00:
00]} 13. Re4 {[%emt 0:02:58]} Bxf3 {[%emt 0:04:57]} 14. Nxf3 {[%emt 0:00:31]}
Na5 {[%emt 0:00:56]} 15. Bxf7+ {[%emt 0:01:45]} Rxf7 {[%emt 0:00:58]} 16. Qe6 {
[%emt 0:13:10]} Qd5 {[%emt 0:04:14]} 17. Qg4 {[%emt 0:08:33]} Nc6 {[%emt 0:00:
00]} 18. Rae1 {[%emt 0:02:35]} Raf8 {[%emt 0:03:01]} 19. Qh4 {[%emt 0:16:13]}
Qf5 {[%emt 0:06:53]} 20. Re8 {[%emt 0:02:16]} Rxe8 {[%emt 0:02:01]} 21. Rxe8+ {
[%emt 0:00:08]} Rf8 {[%emt 0:00:25]} 22. Re1 {[%emt 0:00:49]} h6 {[%emt 0:00:
00]} 23. Qg3 {[%emt 0:06:07]} Nd5 {[%emt 0:02:30]} 24. Nh4 {[%emt 0:00:49]} Qf4
{[%emt 0:01:33]} 25. Nf3 {[%emt 0:12:22]} Nxd4 {[%emt 0:04:37]} 26. Nxd4 {
[%emt 0:00:43]} Qxd4 {[%emt 0:00:36]} 27. h3 {[%emt 0:01:02]} Qf4 {[%emt 0:00:
00]} 28. Re5 {[%emt 0:01:39]} Qxg3 {[%emt 0:00:56]} 29. fxg3 {[%emt 0:00:08]}
c6 {[%emt 0:00:10]} 0-1

[Event "44th Chess Olympiad Women 2022"]
[Site "Chennai"]
[Date "2022.08.06"]
[Round "8.54"]
[White "Ahmed, Najla"]
[Black "Nakabo, Peninah"]
[Result "0-1"]
[WhiteElo "1176"]
[BlackElo "1747"]
[Annotator "NA RC"]
[PlyCount "77"]
[EventDate "2022.??.??"]
[TimeControl "60"]

1. c4 {[%emt 0:00:02]} e6 {[%emt 0:00:27]} 2. g3 {[%emt 0:00:10]} d5 {[%emt 0:
00:00]} 3. Bg2 {[%emt 0:00:15]} Nf6 {[%emt 0:00:39]} 4. Nf3 {[%emt 0:00:20]} c5
{[%emt 0:00:24]} 5. O-O {[%emt 0:01:15]} Nc6 {[%emt 0:00:17]} 6. d3 {[%emt 0:
00:00]} Be7 {[%emt 0:00:48]} 7. Nc3 {[%emt 0:00:31]} d4 {[%emt 0:00:28]} 8. Nb1
{[%emt 0:02:21]} O-O {[%emt 0:01:47]} 9. Bd2 {[%emt 0:08:24]} e5 {[%emt 0:00:
00]} 10. Ne1 {[%emt 0:01:37]} Be6 {[%emt 0:00:57]} 11. Nc2 {[%emt 0:00:08]} Qc8
{[%emt 0:00:35]} 12. Re1 {[%emt 0:00:04]} Bh3 {[%emt 0:00:12]} 13. Bh1 {
[%emt 0:00:05]} Re8 {[%emt 0:01:25]} 14. Bg5 {[%emt 0:03:05]} h6 {[%emt 0:00:
00]} 15. Bxf6 {[%emt 0:00:06]} Bxf6 {[%emt 0:00:15]} 16. Nd2 {[%emt 0:00:34]}
Be7 {[%emt 0:00:19]} 17. e3 {[%emt 0:03:44]} Bd6 {[%emt 0:07:09]} 18. Ne4 {
[%emt 0:05:44]} Bf8 {[%emt 0:01:31]} 19. Bg2 {[%emt 0:07:57]} Bxg2 {[%emt 0:00:
00]} 20. Kxg2 {[%emt 0:00:07]} Qf5 {[%emt 0:00:27]} 21. Qf3 {[%emt 0:01:20]}
Qg6 {[%emt 0:00:23]} 22. Rad1 {[%emt 0:05:32]} f5 {[%emt 0:01:02]} 23. Nd2 {
[%emt 0:07:45]} e4 {[%emt 0:01:13]} 24. Qe2 {[%emt 0:05:13]} Ne5 {[%emt 0:00:
00]} 25. Qf1 {[%emt 0:08:34]} Nxd3 {[%emt 0:01:04]} 26. Re2 {[%emt 0:00:16]}
Nxb2 {[%emt 0:00:39]} 27. exd4 {[%emt 0:00:56]} Nxd1 {[%emt 0:00:36]} 28. Qxd1
{[%emt 0:00:07]} cxd4 {[%emt 0:01:18]} 29. Nxd4 {[%emt 0:00:41]} Rad8 {[%emt 0:
00:00]} 30. Nc2 {[%emt 0:02:52]} Bc5 {[%emt 0:03:01]} 31. Qe1 {[%emt 0:07:16]}
Qc6 {[%emt 0:04:17]} 32. Kg1 {[%emt 0:02:20]} Rd3 {[%emt 0:04:17]} 33. Ne3 {
[%emt 0:04:53]} Bxe3 {[%emt 0:00:11]} 34. Rxe3 {[%emt 0:00:05]} Red8 {[%emt 0:
00:00]} 35. Rxd3 {[%emt 0:02:16]} Rd7 {[%emt 0:00:09]} 36. Rd4 Rxd4 {[%emt 0:
00:00]} 37. Qe2 {[%emt 0:01:59]} Rd3 {[%emt 0:00:48]} 38. Nf1 {[%emt 0:02:13]}
Qxc4 {[%emt 0:00:33]} 39. a3 {[%emt 0:02:01]} 0-1